[Event "FIDE WSCC 50 2022"]
[Site "Assisi"]
[Date "2022.11.19"]
[Round "5.11"]
[White "Calzetta Ruiz, Monica"]
[Black "Bellia, Fabrizio"]
[Result "0-1"]
[ECO "C76"]
[WhiteElo "2244"]
[BlackElo "2398"]
[Annotator "TA"]
[PlyCount "98"]
[EventDate "2022.11.14"]
[EventType "swiss"]
[EventCountry "ITA"]
[SourceTitle "playchess.com"]
[Source "ChessBase"]
[SourceQuality "1"]
[TimeControl "40/5400+30:1800+30"]

{[%evp 14,98,45,27,22,-28,-31,-50,-41,-31,-29,-54,-32,-68,-73,-120,-136,-138,-117,-106,0,0,0,0,0,0,0,-3,-5,-29,-21,-21,0,-18,51,60,60,0,27,-32,0,0,0,0,0,0,0,-35,-38,-31,-35,-49,0,-34,0,-144,-121,-142,-111,-197,-147,-200,-205,-240,-221,-562,-562,-537,-529,-560,-541,-4129,-4129,-4100,-3034,-1841,-1753,-1462,-1426,-4129,-2071,-29965,-29964,-29966,-29967,-5734,-5702]} 1. e4 {[%emt 0:00:05]} e5 {[%emt 0:00:11]} 2. Nf3 {[%emt 0:00:08]} Nc6 {[%emt 0:00:04]} 3. Bb5 {[%emt 0:00:06]} a6 {[%emt 0:00:05]} 4. Ba4 {[%emt 0:00:07]} d6 {[%emt 0:00:04]} 5. O-O {[%emt 0:15:59]} Bd7 {[%emt 0:00:28]} 6. c3 {[%emt 0:09:42]} g6 {[%emt 0:00:33]} 7. d4 {[%emt 0:00:19]} Bg7 {[%emt 0:00:06]} 8. Bb3 {[%emt 0:12:47]} Nf6 {[%emt 0:02:27] C76: Ruy Lopez: Deferred Steinitz: 5 c3 Bd7 6 d4 g6.} 9. Ng5 {[%emt 0:09:48]} (9. Nbd2 $142) 9... O-O $11 {[%emt 0:00:37]} 10. f4 {[%emt 0:00:08] [#]} exd4 $146 {[%emt 0:11:04] Black is slightly better.} ({Predecessor:} 10... Qe7 11. fxe5 dxe5 12. d5 Na5 13. Bc2 c5 14. Qe1 Nh5 15. a4 c4 16. Qf2 f5 {½-½ (41) Agopov,M (2419)-Huebner,R (2598) Finland 2010}) 11. cxd4 {[%emt 0:00:47]} h6 {[%emt 0:04:15]} 12. Nxf7 {[%emt 0:06:03]} Rxf7 {[%emt 0:00:39]} 13. e5 {[%emt 0:00:24]} Bg4 $1 {[%emt 0:11:19]} 14. Bxf7+ {[%emt 0:05:54]} (14. Qd2 $142) 14... Kxf7 $17 {[%emt 0:00:08]} 15. Qb3+ {[%emt 0:00:23]} Be6 {[%emt 0:00:54]} 16. Qxb7 {[%emt 0:00:28] [#]} Na5 {[%emt 0:09:21] The board is on fire.} (16... Nxd4 $6 17. exf6 Bxf6 18. Nc3 $15) ({Black should play} 16... Bd5 $1 $17 17. Nc3 (17. exf6 $2 Bxf6 18. Nc3 Bxd4+ 19. Kh1 Ra7 $19) 17... Ra7 18. Qxa7 Nxa7 19. exf6 Bc4 20. fxg7 Bxf1 21. Kxf1 Qh4) 17. Qf3 $11 {[%emt 0:00:14] Prevents Ne4. f5 is the strong threat.} Nd5 $1 {[%emt 0:22:59]} 18. Nc3 {[%emt 0:04:53]} Nxc3 {[%emt 0:04:27]} 19. bxc3 {[%emt 0:00:14][%cal Of4f5]} dxe5 $1 {[%emt 0:00:11]} 20. fxe5+ {[%emt 0:00:58]} Kg8 {[%emt 0:00:08]} 21. Rb1 {[%emt 0:16:07]} Qd5 {[%emt 0:03:33]} 22. Qg3 {[%emt 0:01:48]} Kh7 {[%emt 0:01:10]} 23. Rb2 {[%emt 0:05:22]} Rf8 {[%emt 0:02:43]} (23... c5 $11 24. Qf3 (24. Rb6 $2 Nc4 $19) 24... Qxf3 25. Rxf3 g5) 24. Rxf8 $14 {[%emt 0:00:12]} Bxf8 {[%emt 0:00:03]} 25. Rf2 {[%emt 0:00:09]} (25. h4 $1 $14) 25... Bg7 {[%emt 0:00:07]} 26. Qh4 {[%emt 0:01:14]} (26. Ba3 $11) 26... c5 {[%emt 0:06:16]} (26... Nc6 $5 {[%cal Rd5c4]}) 27. Qe7 {[%emt 0:01:25][%cal Oc1h6] [#] Strongly threatening Bxh6!} Nc6 {[%emt 0:00:05]} 28. Qxc5 {[%emt 0:02:54]} Qxc5 {[%emt 0:00:11]} 29. dxc5 {[%emt 0:00:04]} Bxe5 {[%emt 0:00:26]} 30. Bd2 {[%emt 0:01:35]} Kg7 {[%emt 0:02:49][%mdl 1024] Black has compensation.} 31. a3 {[%emt 0:00:26]} g5 {[%emt 0:02:07]} 32. Rf1 {[%emt 0:00:21]} Na5 {[%emt 0:05:32]} (32... Bc4 $15 33. Rd1 Kg6) 33. Rb1 {[%emt 0:00:22]} Bd5 {[%emt 0:00:29]} (33... Nc4 $5 {[%cal Rc4d2]} 34. Be1 Kf6 $15) 34. Rb4 {[%emt 0:01:44] Black continues to play with concentration.} (34. Rd1 $11 {keeps the balance.}) 34... Nc4 $17 {[%emt 0:00:38]} 35. Be1 {[%emt 0:01:05]} Kf6 {[%emt 0:01:44] Black has more active pieces.} ({But not} 35... Nxa3 36. Ra4 Nc4 37. Rxa6 $11) 36. h4 {[%emt 0:00:24]} (36. Bg3 $17 {might work better.}) 36... Ke6 {[%emt 0:02:13]} (36... a5 $19 37. Rb1 Ke6 38. hxg5 hxg5) 37. hxg5 {[%emt 0:00:03]} (37. c6 $17) 37... hxg5 $19 {[%emt 0:00:04]} 38. a4 {[%emt 0:01:02]} a5 {[%emt 0:00:45]} 39. Rb3 {[%emt 0:00:24]} (39. Rb5 {is tougher.}) 39... Bc6 {[%emt 0:00:07]} 40. Rb1 {[%emt 0:02:11]} Bxa4 {[%emt 0:00:25] This bishop pair is nice.} 41. Bf2 {[%emt 0:30:45]} Kd5 {[%emt 0:35:36] Prevents Bd4.} 42. Bd4 {[%emt 0:00:00]} Bxd4+ {[%emt 0:00:00]} 43. cxd4 {[%emt 0:00:00]} Bc6 {[%emt 0:00:00]} 44. Rd1 {[%emt 0:00:00]} a4 {[%emt 0:00:00][%cal Ba5a4,Ba4a3][%mdl 32]} 45. Kf2 {[%emt 0:00:00]} Ke4 {[%emt 0:00:00]} 46. g3 {[%emt 0:00:00]} a3 {[%emt 0:00:00] ( -> ...g4)} 47. Ke2 {[%emt 0:00:00]} g4 {[%emt 0:00:00]} 48. Kf2 {[%emt 0:00:00]} Ba4 {[%emt 0:00:00]} 49. Rb1 {[%emt 0:02:23]} Kxd4 {[%emt 0:00:00] Weighted Error Value: White=0.61/Black=0.24 (precise)} 0-1

[Event "FIDE WSCC 50 2022"]
[Site "Assisi"]
[Date "2022.11.19"]
[Round "5.12"]
[White "de Francesco, Klaus"]
[Black "Vinter-Schou, Uffe"]
[Result "1-0"]
[ECO "A68"]
[WhiteElo "2171"]
[BlackElo "2375"]
[Annotator "TA"]
[PlyCount "63"]
[EventDate "2022.11.14"]
[EventType "swiss"]
[EventCountry "ITA"]
[SourceTitle "playchess.com"]
[Source "ChessBase"]
[SourceQuality "1"]
[TimeControl "40/5400+30:1800+30"]

{[%evp 25,63,29,36,18,55,48,49,58,118,95,172,173,265,250,265,250,269,208,383,310,530,414,464,427,664,710,1660,1485,1491,1454,2907,2013,1970,1764,2440,1871,29992,29993,29993,29994]} 1. d4 {[%emt 0:00:07]} g6 {[%emt 0:00:47]} 2. c4 {[%emt 0:00:28]} Bg7 {[%emt 0:00:05]} 3. e4 {[%emt 0:00:09]} c5 {[%emt 0:00:17]} 4. d5 {[%emt 0:00:13]} d6 {[%emt 0:00:05]} 5. Nc3 {[%emt 0:00:29]} Nf6 {[%emt 0:03:03]} 6. f4 {[%emt 0:00:25]} O-O {[%emt 0:07:47]} 7. Nf3 {[%emt 0:00:16]} Bg4 {[%emt 0:00:59]} 8. Be2 {[%emt 0:00:50]} Na6 {[%emt 0:02:23]} 9. O-O {[%emt 0:00:42]} Nc7 {[%emt 0:00:22]} 10. a4 {[%emt 0:00:52]} e6 {[%emt 0:17:43]} 11. h3 {[%emt 0:01:25]} Bxf3 {[%emt 0:00:25]} 12. Bxf3 {[%emt 0:00:08]} exd5 {[%emt 0:01:09]} 13. cxd5 {[%emt 0:00:09]} Nd7 {[%emt 0:07:08]} 14. Be3 {[%emt 0:08:56] [#] A68: Modern Benoni: Four Pawns Attack without 9...Re8.} (14. g4 {is more complex.} Qh4 15. Kh2 Rae8 16. Be3) 14... Na6 $146 {[%emt 0:09:12]} ({Predecessor:} 14... a6 15. Qd3 Rb8 16. a5 b6 17. axb6 Rxb6 18. Na4 Rb4 19. Bd2 Rd4 20. Qc2 Qh4 {0-1 (47) Sutter,O (2422)-Glek,I (2537) Switzerland 2006}) 15. Nb5 {[%emt 0:08:17]} Qf6 {[%emt 0:09:39]} 16. Rf2 {[%emt 0:03:42] White is slightly better.} Rfe8 {[%emt 0:06:02]} ({Black should try} 16... Nb4 $14) 17. Rc1 {[%emt 0:05:54] White is more active.} h5 {[%emt 0:02:41]} (17... Red8 $16 {might work better.}) 18. Qd2 $18 {[%emt 0:01:13]} Bf8 {[%emt 0:10:37]} (18... Rf8 $142 19. g4 hxg4 20. hxg4 (20. Bxg4 Rad8 $16) 20... Qe7) 19. Rcf1 {[%emt 0:02:14]} Qg7 {[%emt 0:00:12]} 20. f5 {[%emt 0:01:52]} Nf6 {[%emt 0:02:18]} 21. fxg6 {[%emt 0:05:00]} fxg6 {[%emt 0:00:13]} (21... Qxg6 22. Bg5 Nh7) 22. Bg5 {[%emt 0:02:08] [#] Bxf6 is the strong threat.} Nd7 {[%emt 0:01:49]} (22... Nh7 {is a better defense.} 23. Bf4 Rad8) 23. Be2 {[%emt 0:04:22][%cal Of2f7] Hoping for Rf7!} Ne5 {[%emt 0:04:48] Against Rf7} 24. Rf6 {[%emt 0:00:53]} Qd7 {[%emt 0:06:26]} (24... c4 $142 25. Nxd6 Bxd6) 25. Bf4 {[%emt 0:02:04] Threatens to win with Bxe5.} Nf7 {[%emt 0:05:10]} 26. Rxg6+ {[%emt 0:01:17]} Bg7 {[%emt 0:00:32]} 27. Bxh5 {[%emt 0:01:46][%cal Og6g7,Be2h5,Bh5g4,Bg4e6][%mdl 32] [#] Strongly threatening Rxg7+!} Rxe4 {[%emt 0:00:12]} 28. Bg4 {[%emt 0:00:37] A strong pair of Bishops.} Qe7 {[%emt 0:00:33]} 29. Be6 {[%emt 0:00:27]} Kh8 {[%emt 0:00:24]} 30. Qd1 {[%emt 0:02:19] White wants to mate with Qh5+.} Rd8 {[%emt 0:01:50]} 31. Qh5+ {[%emt 0:01:34]} Kg8 {[%emt 0:00:01]} 32. Bh6 {[%emt 0:01:03] Black got outplayed after the opening.  Weighted Error Value: White=0.24 (precise) /Black=1.14} 1-0

[Event "FIDE WSCC 50 2022"]
[Site "Assisi"]
[Date "2022.11.19"]
[Round "5.13"]
[White "Grant, Jonathan I M"]
[Black "Paschall, William"]
[Result "1/2-1/2"]
[ECO "A36"]
[WhiteElo "2154"]
[BlackElo "2343"]
[Annotator "TA"]
[PlyCount "128"]
[EventDate "2022.11.14"]
[EventType "swiss"]
[EventCountry "ITA"]
[SourceTitle "playchess.com"]
[Source "ChessBase"]
[SourceQuality "1"]
[TimeControl "40/5400+30:1800+30"]

{[%evp 9,128,-8,-20,-22,-25,-22,0,0,0,0,0,0,0,0,0,0,25,-35,-27,-19,0,-4,11,11,16,16,6,10,1,0,19,19,19,19,29,29,29,6,12,0,0,0,0,8,8,7,84,103,94,97,91,97,79,0,20,-82,-70,-69,-56,-83,97,30,48,25,14,27,25,12,20,-123,48,45,117,134,203,79,170,52,188,184,184,149,183,160,170,0,0,0,0,0,6,0,0,0,0,0,52,58,58,58,84,8,33,0,35,0,0,0,0,0,0,0,0,0,0,0,0,0,0,0,0]} 1. c4 {[%emt 0:00:03]} g6 {[%emt 0:02:04]} 2. g3 {[%emt 0:00:27]} Bg7 {[%emt 0:00:41]} 3. Bg2 {[%emt 0:00:07]} c5 {[%emt 0:01:25]} 4. Nc3 {[%emt 0:00:10]} Nc6 {[%emt 0:00:15]} 5. e4 {[%emt 0:00:11]} a6 {[%emt 0:01:15]} 6. a4 {[%emt 1:32:32] A36: Symmetrical English vs ...g6: 4 Bg2 Bg7.} d6 {[%emt 0:01:10]} 7. Nge2 {[%emt 0:00:00]} Rb8 {[%emt 0:02:43]} 8. O-O {[%emt 0:00:00]} Bd7 {[%emt 0:01:34]} 9. d3 {[%emt 0:00:00]} Qc8 {[%emt 0:06:09] [#]} 10. Be3 $146 {[%emt 0:00:00]} ({Predecessor:} 10. Re1 Bh3 11. Bh1 h5 12. Be3 h4 13. f3 hxg3 14. hxg3 Nd4 15. Rb1 Bd7 16. Bg2 {½-½ (72) Valles,M (2248)-Foisor,C (2401) Vaujany 2012}) 10... Nf6 {[%emt 0:04:24]} 11. f3 {[%emt 0:00:00]} h5 {[%emt 0:02:31]} 12. h4 {[%emt 0:00:00]} Bh3 {[%emt 0:10:44]} 13. Nd5 {[%emt 0:00:00]} (13. d4 $11) 13... Bxg2 $15 {[%emt 0:01:05]} 14. Kxg2 {[%emt 0:00:00]} Nd7 {[%emt 0:05:17]} 15. d4 {[%emt 0:00:00]} e6 {[%emt 0:02:58]} 16. Ndc3 {[%emt 0:00:00]} cxd4 {[%emt 0:04:48]} 17. Nxd4 {[%emt 0:00:00]} O-O {[%emt 0:08:17]} 18. b3 {[%emt 0:00:00]} Nc5 {[%emt 0:05:15]} 19. Rb1 {[%emt 0:00:00]} Ne5 {[%emt 0:02:32]} 20. Nde2 {[%emt 0:00:00]} Qc7 {[%emt 0:03:07]} 21. Qd2 {[%emt 0:00:00]} b6 {[%emt 0:06:21]} 22. Rfd1 {[%emt 0:00:00]} Rbd8 {[%emt 0:01:51]} 23. Nf4 {[%emt 0:00:00]} Qc6 {[%emt 0:06:29]} 24. Bd4 {[%emt 0:00:00]} Rc8 {[%emt 0:04:41]} 25. Qe2 {[%emt 0:00:00]} Rfe8 {[%emt 0:01:09]} 26. Nh3 {[%emt 0:00:00]} Rcd8 {[%emt 0:04:32]} 27. Nf2 {[%emt 0:00:00]} f5 {[%emt 0:00:53]} (27... Rc8 $11 {remains equal.}) 28. exf5 $16 {[%emt 0:05:10]} gxf5 {[%emt 0:00:54]} 29. Nh3 {[%emt 0:00:26]} Ncd7 {[%emt 0:04:26]} 30. Nf4 {[%emt 0:02:15]} Nf6 {[%emt 0:00:08]} 31. Nd3 {[%emt 0:01:53] White is more active.} (31. Bxe5 dxe5 32. Rxd8 (32. Qxe5 $2 Rxd1 33. Rxd1 Ne4 $19) 32... Rxd8 $11) (31. Rbc1 $16) 31... Ng6 {[%emt 0:01:31]} 32. Kh3 {[%emt 0:00:25]} (32. Qd2 $11) 32... e5 $17 {[%emt 0:01:24]} 33. Nb4 {[%emt 0:01:24][%csl LRa6,LRc6]} Qb7 {[%emt 0:00:47]} 34. Bf2 {[%emt 0:00:17] [#]} e4 $2 {[%emt 0:00:33]} (34... f4 35. Nbd5 $11) (34... Nf4+ $1 $17 {stays on course.} 35. gxf4 exf4) 35. f4 {[%emt 0:00:23]} (35. Ncd5 $16) 35... e3 {[%emt 0:00:57]} 36. Bg1 {[%emt 0:01:08]} (36. Bxe3 $5 {[%cal Rc3d5]} Ng4 37. Rd3 $16) 36... Ng4 {[%emt 0:01:06]} 37. Ncd5 {[%emt 0:00:40]} Re4 $1 {[%emt 0:00:30]} (37... a5 38. Nc2 $16) 38. Nc2 {[%emt 0:01:03][%cal Rc2e3]} Rde8 $1 {[%emt 0:00:15]} 39. Ne1 {[%emt 0:00:14] [#]} (39. Bxe3 Ne7 40. Rd3 Nxd5 41. cxd5 b5 42. axb5 axb5 $17) (39. Rf1 $11) 39... Bh6 $2 {[%emt 0:01:11]} (39... Rxf4 $1 $17 {[%mdl 512] Strongly threatening ...Rfe4.} 40. gxf4 (40. Nxf4 Nf2+ 41. Qxf2 exf2 42. Neg2 Nxf4+ 43. Nxf4 Qh1+ 44. Bh2 Re1) 40... Qxd5 $3 {[%mdl 512]}) 40. Ng2 $1 $14 {[%emt 0:00:34]} Qg7 {[%emt 0:00:30]} (40... Bg7 $1 $14) 41. Rd3 $16 {[%emt 0:04:51]} ({Wrong is} 41. Ngxe3 $2 Bxf4 $1 {[%mdl 512]} 42. Qb2 Bxe3 $19) 41... Qb7 {[%emt 0:12:48]} (41... Ne7 $16) 42. Bxe3 {[%emt 0:07:57]} (42. Ngxe3 Bxf4 $1 43. gxf4 Nxf4+ 44. Nxf4 Rxf4 $15) (42. Rxe3 $18 {is more deadly.} Qd7 43. Qd3 (43. Nxb6 Qe6 $16)) 42... Bg7 {[%emt 0:04:15]} (42... Ne7 $16 {was necessary.}) 43. Qc2 {[%emt 0:03:34]} (43. Qf1 $18) 43... b5 {[%emt 0:02:51]} ({Black should try} 43... Ne7 $1 $14) 44. axb5 {[%emt 0:06:35]} axb5 {[%emt 0:00:21]} 45. cxb5 {[%emt 0:03:28] Hoping for Qc6.} Rc8 {[%emt 0:01:12] [#] Prevents Qc6.} 46. Qd2 {[%emt 0:00:43]} Qxb5 {[%emt 0:00:37] [#]} 47. Nc3 $2 {[%emt 0:02:18]} ({Only move:} 47. Bg1 $1 $18) 47... Bxc3 $11 {[%emt 0:02:50]} 48. Rxc3 {[%emt 0:00:05]} Rxc3 {[%emt 0:01:38]} 49. Qxc3 {[%emt 0:00:09]} Qe2 {[%emt 0:01:57][%cal Rg4e3]} 50. Re1 {[%emt 0:05:26]} Qf3 {[%emt 0:02:46][%cal Oe4e3] ( -> ...Rxe3!)} 51. Bd4 {[%emt 0:00:56] Chess con chili.} Nf2+ {[%emt 0:05:00] Pair of Knights!} 52. Kh2 {[%emt 0:00:01]} Ng4+ {[%emt 0:00:45]} (52... Rxe1 $1 $11 53. Qxe1 (53. Qxf3 $2 Rh1#) 53... Ng4+ 54. Kh3 Qxb3) 53. Kg1 $14 {[%emt 0:00:37]} Rxe1+ {[%emt 0:00:37]} 54. Nxe1 {[%emt 0:00:22]} Qe4 {[%emt 0:00:52]} 55. Qc4+ {[%emt 0:01:04]} (55. Nf3 $16) 55... d5 {[%emt 0:00:09]} (55... Kf8 $5 {[%cal Re4e1]} 56. Bf2 Ne7 $14) 56. Qc3 {[%emt 0:00:29]} Qe2 {[%emt 0:00:21]} 57. Nf3 $40 {[%emt 0:00:31][%mdl 128] White attacks.} Qd1+ {[%emt 0:00:37] The position is equal.} 58. Kg2 {[%emt 0:00:30] aiming for Qb2.} Qe2+ {[%emt 0:00:43]} 59. Kg1 {[%emt 0:00:03]} Nf8 {[%emt 0:00:34]} 60. Ng5 {[%emt 0:00:48]} Qd1+ {[%emt 0:00:32]} 61. Kg2 {[%emt 0:00:09] Qb2 is the strong threat.} Qe2+ {[%emt 0:00:38]} 62. Kg1 {[%emt 0:00:05]} Qd1+ {[%emt 0:00:33]} 63. Kg2 {[%emt 0:00:09]} Qe2+ {[%emt 0:00:22]} 64. Kg1 {[%emt 0:00:06]} Qd1+ {[%emt 0:00:38] Blacks defense is rewarded with a draw.  Weighted Error Value: White=0.28 (precise) /Black=0.21 (precise)} 1/2-1/2

[Event "FIDE WSCC 50 2022"]
[Site "Assisi"]
[Date "2022.11.19"]
[Round "5.14"]
[White "Wollenweber, Carsten"]
[Black "Arakhamia-Grant, Ketevan"]
[Result "1/2-1/2"]
[ECO "A46"]
[WhiteElo "2033"]
[BlackElo "2327"]
[Annotator "TA"]
[PlyCount "83"]
[EventDate "2022.11.14"]
[EventType "swiss"]
[EventCountry "ITA"]
[SourceTitle "playchess.com"]
[Source "ChessBase"]
[SourceQuality "1"]
[TimeControl "40/5400+30:1800+30"]

{[%evp 10,83,10,0,33,27,29,19,25,24,32,10,35,18,24,0,10,-6,-8,-47,-31,-41,-31,-30,-30,-31,25,16,19,8,5,5,116,95,72,0,0,-2,-10,-3,21,24,115,47,46,88,56,54,87,95,182,100,98,0,162,161,190,96,244,45,326,316,281,243,402,417,426,388,420,104,89,0,365,0,97,0]} 1. Nf3 {[%emt 0:00:03]} Nf6 {[%emt 0:01:02]} 2. b3 {[%emt 0:01:37]} d6 {[%emt 0:01:15]} 3. d4 {[%emt 0:00:20]} g6 {[%emt 0:01:06]} 4. Bb2 {[%emt 0:00:15]} Bg7 {[%emt 0:00:06]} 5. Nbd2 {[%emt 0:03:56]} O-O {[%emt 0:13:04]} 6. e4 {[%emt 0:02:20]} Nh5 {[%emt 0:05:30] A46: 1 d4 Nf6 2 Nf3 e6: Torre, London and Colle Systems.} 7. g3 {[%emt 0:02:52]} c5 {[%emt 0:02:17] [#]} 8. Bg2 $146 {[%emt 0:02:31]} ({Predecessor:} 8. Be2 cxd4 9. Bxd4 Nf6 10. h4 Nc6 11. c3 d5 12. exd5 Nxd4 13. cxd4 Bg4 14. Nc4 Nxd5 {0-1 (36) Harris,I (2275)-Sambuev,B (2597) Montreal 2014}) 8... Nc6 {[%emt 0:00:34][%cal Rc5d4] The position is equal.} 9. c3 {[%emt 0:00:45]} b5 {[%emt 0:08:10]} 10. d5 {[%emt 0:06:10]} Na5 {[%emt 0:07:59]} 11. Qc2 {[%emt 0:03:55]} e6 {[%emt 0:01:10]} 12. c4 {[%emt 0:03:06]} Bxb2 {[%emt 0:13:16]} 13. Qxb2 {[%emt 0:00:15]} bxc4 {[%emt 0:00:12] aiming for ...exd5.} 14. bxc4 {[%emt 0:00:08][%cal Bb3c4,Bc4d5,Bd5d6][%mdl 32]} Ba6 $1 {[%emt 0:01:32]} 15. Qc3 {[%emt 0:01:45]} exd5 {[%emt 0:04:14]} 16. cxd5 {[%emt 0:00:03]} f5 {[%emt 0:03:02]} 17. e5 {[%emt 0:04:17]} dxe5 {[%emt 0:03:24]} ({Better is} 17... Rb8 $15) 18. Nxe5 $11 {[%emt 0:00:09] Strongly threatening 0-0-0.} Nf6 {[%emt 0:14:54]} 19. O-O-O {[%emt 0:03:08] Hoping for Rhe1.} Rb8 $1 {[%emt 0:06:09]} 20. Rhe1 {[%emt 0:03:59] Black must now prevent Nb3.} Qb6 {[%emt 0:01:25] Against Nb3} (20... Rb4 $1 $11) 21. d6 {[%emt 0:05:02][%cal Oe5d7]} Bb7 {[%emt 0:01:21]} 22. Bf1 {[%emt 0:01:16] Active counter play!} (22. Ndc4 $16 Nxc4 23. Nxc4) 22... Bd5 {[%emt 0:00:57]} 23. Nec4 {[%emt 0:05:39]} Nxc4 {[%emt 0:00:15]} 24. Bxc4 {[%emt 0:00:12] Dancing on a razor blade.} Qb4 {[%emt 0:06:19]} 25. Qxb4 {[%emt 0:01:59]} cxb4 {[%emt 0:00:07]} (25... Rxb4 $11 26. Bxd5+ Nxd5) 26. Kb2 {[%emt 0:02:05]} (26. Bxd5+ $1 $16 Nxd5 27. Nc4) 26... Rfd8 $14 {[%emt 0:00:54]} 27. Bxd5+ {[%emt 0:04:25]} Nxd5 {[%emt 0:00:04]} 28. Nc4 {[%emt 0:00:35]} Nc3 {[%emt 0:00:39]} 29. Rd4 {[%emt 0:00:22] Threatens to win with Re7.} Nb5 {[%emt 0:02:48]} (29... Kf8 $16 {was necessary.}) 30. Rd5 {[%emt 0:02:22]} (30. Rd2 $1 $18) 30... Nc3 $16 {[%emt 0:00:15]} 31. Rd4 {[%emt 0:00:18]} (31. Rde5 $16) 31... Nb5 $1 $18 {[%emt 0:00:05]} 32. Rd2 {[%emt 0:01:13]} Rd7 {[%emt 0:01:25]} (32... Rbc8 $2 33. d7 $1 Ra8 34. f3 $18) 33. Re5 {[%emt 0:03:26]} ({White has to play} 33. Kb3 $18) 33... Kf8 {[%emt 0:00:29] [#]} (33... Na3 $16 34. Kb3 (34. Nxa3 bxa3+ 35. Kxa3 Kf7 $14) 34... Nxc4 35. Kxc4 Kf7) 34. f3 $2 {[%emt 0:03:20]} (34. Rc5 $1 $18) 34... a6 $2 {[%emt 0:00:13][%mdl 8192]} (34... Na3 $14 35. Kb3 (35. Nxa3 bxa3+ 36. Kxa3 Rb6 $14) 35... Nxc4 36. Kxc4 Kf7) 35. Red5 {[%emt 0:01:20]} Rbd8 {[%emt 0:01:10]} 36. Kb3 {[%emt 0:00:42]} Rb7 $2 {[%emt 0:00:18]} (36... Nc3 {was called for.}) 37. Ne5 {[%emt 0:03:45]} Rb6 {[%emt 0:00:41]} (37... Nc3 $2 38. Rc5 Nb5 39. d7 $18 (39. Kxb4 Rxd6 40. Rxd6 Nxd6+ 41. Kc3 Nb5+ 42. Kd3 Ke7 $14)) 38. d7 {[%emt 0:02:28]} Ke7 {[%emt 0:00:27]} 39. Nc4 $2 {[%emt 0:02:41]} (39. Kc4 $18 {has better winning chances.} Nc3 40. Rc5) 39... Rb7 $16 {[%emt 0:00:36]} 40. Ne5 $2 {[%emt 0:06:22][%mdl 8192]} (40. Na5 $16 Rc7 41. Kxb4) 40... Rb6 $18 {[%emt 0:00:19]} 41. Nc4 $2 {[%emt 0:30:50]} (41. Rc5 $18) 41... Rb7 $16 {[%emt 0:30:40]} 42. Ne5 {[%emt 0:00:19] Weighted Error Value: White=0.57/Black=0.27 (precise)} (42. Na5 $16 Rc7 43. Kxb4) 1/2-1/2

[Event "FIDE WSCC 50 2022"]
[Site "Assisi"]
[Date "2022.11.19"]
[Round "5.15"]
[White "Arkell, Keith C"]
[Black "Makropoulou, Marina"]
[Result "1-0"]
[ECO "D36"]
[WhiteElo "2408"]
[BlackElo "2153"]
[Annotator "TA"]
[PlyCount "71"]
[EventDate "2022.11.14"]
[EventType "swiss"]
[EventCountry "ITA"]
[SourceTitle "playchess.com"]
[Source "ChessBase"]
[SourceQuality "1"]
[TimeControl "40/5400+30:1800+30"]

{[%evp 14,71,5,4,2,0,0,0,0,0,5,0,0,3,29,24,29,19,42,33,46,37,32,39,37,47,82,82,85,77,154,136,168,150,185,214,201,206,212,204,252,238,240,208,378,365,634,524,574,575,530,464,575,457,541,539,508,501,526,505]} 1. Nf3 {[%emt 0:00:11]} Nf6 {[%emt 0:01:11]} 2. c4 {[%emt 0:00:15]} e6 {[%emt 0:00:37]} 3. Nc3 {[%emt 0:00:05]} d5 {[%emt 0:00:50]} 4. cxd5 {[%emt 0:00:06]} exd5 {[%emt 0:00:04]} 5. d4 {[%emt 0:00:03]} c6 {[%emt 0:01:32]} 6. Qc2 {[%emt 0:00:05]} Na6 {[%emt 0:00:45]} 7. a3 {[%emt 0:00:10]} Nc7 {[%emt 0:00:36]} 8. Bg5 {[%emt 0:00:05]} g6 {[%emt 0:03:05] D36: Queen's Gambit Declined: Exchange Variation: Main line (5 Bg5 c6 6 Qc2).} 9. e3 {[%emt 0:00:19]} Bf5 {[%emt 0:00:25]} 10. Bd3 {[%emt 0:00:14]} Bxd3 {[%emt 0:00:05] The position is equal.} 11. Qxd3 {[%emt 0:00:03]} Be7 {[%emt 0:01:55]} 12. b4 {[%emt 0:00:21]} O-O {[%emt 0:15:00][%cal Of6e4]} 13. O-O {[%emt 0:00:17] [#]} Re8 $146 {[%emt 0:13:08][%cal Of6e4]} ({Predecessor:} 13... Ne4 14. Bf4 Nxc3 15. Bxc7 Qxc7 16. Qxc3 {½-½ (16) Vaganian,R (2645)-Kasparov,G (2795) Horgen 1995}) 14. Bxf6 {[%emt 0:00:16]} Bxf6 {[%emt 0:00:02]} 15. b5 {[%emt 0:01:26]} cxb5 {[%emt 0:06:09]} 16. Nxb5 {[%emt 0:00:05]} Ne6 {[%emt 0:00:18]} 17. a4 {[%emt 0:00:11]} a6 {[%emt 0:07:29]} 18. Nc3 {[%emt 0:00:06][%cal Bb5c3,Bc3a4,Ba4b6][%mdl 32]} Rc8 {[%emt 0:00:27]} 19. a5 {[%emt 0:03:45]} Ng7 {[%emt 0:13:46]} 20. Rfb1 {[%emt 0:04:01] Black is now going downhill.} Rc7 {[%emt 0:00:47]} 21. Na4 {[%emt 0:00:20]} g5 {[%emt 0:03:54]} ({Black should try} 21... Be7) 22. Nb6 {[%emt 0:01:14] White is more active.} g4 {[%emt 0:01:46] [#]} 23. Ne1 {[%emt 0:00:20][%cal Bf3e1,Be1d3,Bd3f4,Bf4d5,Bd5b4,Bb4d3,Bd3e5][%mdl 32]} Re6 {[%emt 0:01:20]} 24. Qb3 {[%emt 0:00:42]} Rd6 {[%emt 0:04:04]} 25. Nd3 {[%emt 0:00:06]} Nf5 {[%emt 0:02:18]} 26. Nf4 {[%emt 0:00:20]} Bg5 {[%emt 0:12:18][%cal Of5d4]} 27. Nfxd5 {[%emt 0:06:10] Pair of Knights!} ({But not} 27. Nbxd5 Rcd7 28. Nb6 Bxf4 29. Nxd7 (29. exf4 Nxd4 30. Qa2 Re7 $15) 29... Qxd7 $18) 27... Rcc6 {[%emt 0:01:22]} 28. Nb4 {[%emt 0:01:45]} Rxb6 {[%emt 0:06:07]} (28... Rc7 {might work better.} 29. Nc4 Re6) 29. axb6 $18 {[%emt 0:00:07]} Nh4 $2 {[%emt 0:02:17]} (29... Rxb6 30. Qd5 Nd6) 30. Nd3 {[%emt 0:02:51] White is clearly winning.} Qf6 {[%emt 0:00:10]} 31. Ne5 {[%emt 0:00:25]} Qf5 {[%emt 0:00:58]} 32. Rc1 {[%emt 0:04:00]} Kg7 {[%emt 0:00:56]} 33. Qc2 {[%emt 0:04:47] [#] Black must now prevent Qxf5.} Qe6 {[%emt 0:00:21]} 34. Qc8 {[%emt 0:00:59]} Rxb6 {[%emt 0:00:45]} 35. Qxe6 {[%emt 0:00:13]} fxe6 {[%emt 0:00:01]} 36. Rc7+ {[%emt 0:00:12] Weighted Error Value: White=0.22 (precise) /Black=0.47} 1-0